[Event "*** Titled Tuesday Blitz"]
[Site "Chess.com"]
[Date "2020.04.14"]
[Round "1"]
[White "Zavgorodniy_Serg"]
[Black "eCztery"]
[Result "1-0"]
[WhiteElo "2721"]
[BlackElo "2376"]
[TimeControl "180+1"]
[EndTime "10:09:16 PDT"]
[Termination "Zavgorodniy_Serg won by checkmate"]

1. e4 {[%clk 0:03:00.9]} 1... c5 {[%clk 0:02:59.3]} 2. Nf3 {[%clk 0:02:58.8]}
2... Nc6 {[%clk 0:02:59.6]} 3. Bb5 {[%clk 0:02:58.1]} 3... Na5 {[%clk
0:02:56.3]} 4. O-O {[%clk 0:02:56.7]} 4... g6 {[%clk 0:02:55.6]} 5. c3 {[%clk
0:02:55.7]} 5... Bg7 {[%clk 0:02:51.5]} 6. d4 {[%clk 0:02:54.7]} 6... cxd4
{[%clk 0:02:50.9]} 7. cxd4 {[%clk 0:02:54.6]} 7... Nf6 {[%clk 0:02:50.9]} 8. Nc3
{[%clk 0:02:52.8]} 8... O-O {[%clk 0:02:45.6]} 9. Qe2 {[%clk 0:02:39.8]} 9... a6
{[%clk 0:02:44.6]} 10. Bd3 {[%clk 0:02:38.9]} 10... d5 {[%clk 0:02:36.1]} 11. e5
{[%clk 0:02:38.1]} 11... Ne8 {[%clk 0:02:33.3]} 12. h3 {[%clk 0:02:37.2]} 12...
Nc7 {[%clk 0:02:19.2]} 13. Be3 {[%clk 0:02:27.9]} 13... b5 {[%clk 0:02:18.8]}
14. b3 {[%clk 0:02:24.6]} 14... Bb7 {[%clk 0:02:15.3]} 15. Rac1 {[%clk
0:02:14.7]} 15... Rc8 {[%clk 0:02:13.4]} 16. Qd2 {[%clk 0:02:11.3]} 16... Ne6
{[%clk 0:02:02.7]} 17. Ne2 {[%clk 0:01:54.6]} 17... Nc6 {[%clk 0:01:57.4]} 18.
Bh6 {[%clk 0:01:51.8]} 18... Qb6 {[%clk 0:01:54.8]} 19. Bxg7 {[%clk 0:01:42.2]}
19... Kxg7 {[%clk 0:01:55.7]} 20. Bb1 {[%clk 0:01:40.8]} 20... h6 {[%clk
0:01:52.6]} 21. h4 {[%clk 0:01:36]} 21... f5 {[%clk 0:01:35.5]} 22. exf6+ {[%clk
0:01:34.7]} 22... exf6 {[%clk 0:01:34]} 23. Rfe1 {[%clk 0:01:28.5]} 23... Ne7
{[%clk 0:01:31.4]} 24. Nf4 {[%clk 0:01:22.6]} 24... Rxc1 {[%clk 0:01:29.4]} 25.
Qxc1 {[%clk 0:01:15.9]} 25... Rc8 {[%clk 0:01:10.4]} 26. Nxe6+ {[%clk
0:00:59.1]} 26... Qxe6 {[%clk 0:01:08.9]} 27. Qa3 {[%clk 0:00:59.4]} 27... Qxe1+
{[%clk 0:00:53.7]} 28. Nxe1 {[%clk 0:00:57.6]} 28... Nc6 {[%clk 0:00:54.6]} 29.
Nf3 {[%clk 0:00:51.3]} 29... b4 {[%clk 0:00:52.1]} 30. Qb2 {[%clk 0:00:51.3]}
30... Ne7 {[%clk 0:00:52]} 31. Qd2 {[%clk 0:00:49.1]} 31... a5 {[%clk
0:00:50.7]} 32. Bd3 {[%clk 0:00:48.8]} 32... Rc3 {[%clk 0:00:48.6]} 33. Qe2
{[%clk 0:00:43.7]} 33... Kf7 {[%clk 0:00:46.7]} 34. Bb5 {[%clk 0:00:42.7]} 34...
Bc8 {[%clk 0:00:43.8]} 35. Ne1 {[%clk 0:00:35.9]} 35... Be6 {[%clk 0:00:40.5]}
36. Nd3 {[%clk 0:00:35.2]} 36... g5 {[%clk 0:00:40.4]} 37. h5 {[%clk 0:00:32.7]}
37... Nf5 {[%clk 0:00:39.5]} 38. Qd2 {[%clk 0:00:19.5]} 38... Nxd4 {[%clk
0:00:37.6]} 39. Ba4 {[%clk 0:00:19.3]} 39... Bf5 {[%clk 0:00:33.4]} 40. Nxb4
{[%clk 0:00:18.6]} 40... Rc1+ {[%clk 0:00:33.5]} 41. Kh2 {[%clk 0:00:17]} 41...
axb4 {[%clk 0:00:26.3]} 42. Qxd4 {[%clk 0:00:16.8]} 42... Be6 {[%clk 0:00:26.3]}
43. Qa7+ {[%clk 0:00:16.7]} 43... Kf8 {[%clk 0:00:25.4]} 44. Qh7 {[%clk
0:00:16.6]} 44... Bf7 {[%clk 0:00:23.3]} 45. Qxh6+ {[%clk 0:00:16.5]} 45... Ke7
{[%clk 0:00:24.2]} 46. Qg7 {[%clk 0:00:15.7]} 46... Rc8 {[%clk 0:00:22.4]} 47.
h6 {[%clk 0:00:14.9]} 47... Rg8 {[%clk 0:00:22.7]} 48. Qh7 {[%clk 0:00:15.1]}
48... Kf8 {[%clk 0:00:22.3]} 49. Qd3 {[%clk 0:00:13.7]} 49... Rh8 {[%clk
0:00:21.6]} 50. Qd4 {[%clk 0:00:11.8]} 50... Rxh6+ {[%clk 0:00:21.2]} 51. Kg1
{[%clk 0:00:12.2]} 51... Kg7 {[%clk 0:00:22.1]} 52. Qxb4 {[%clk 0:00:12.3]}
52... Rh4 {[%clk 0:00:22.9]} 53. Qxh4 {[%clk 0:00:10.6]} 53... gxh4 {[%clk
0:00:23.8]} 54. Bb5 {[%clk 0:00:10.8]} 54... d4 {[%clk 0:00:23.2]} 55. Bd3
{[%clk 0:00:10.7]} 55... Kf8 {[%clk 0:00:21.8]} 56. Kf1 {[%clk 0:00:09.9]} 56...
Ke7 {[%clk 0:00:21.6]} 57. f3 {[%clk 0:00:10.2]} 57... Kd6 {[%clk 0:00:22.5]}
58. Kf2 {[%clk 0:00:10.6]} 58... Kc5 {[%clk 0:00:22.1]} 59. Bc4 {[%clk
0:00:08.7]} 59... Bxc4 {[%clk 0:00:18.9]} 60. bxc4 {[%clk 0:00:09.2]} 60... Kxc4
{[%clk 0:00:19.8]} 61. Ke2 {[%clk 0:00:09.7]} 61... Kc3 {[%clk 0:00:20]} 62. Kd1
{[%clk 0:00:10]} 62... Kb2 {[%clk 0:00:20.5]} 63. a4 {[%clk 0:00:09.2]} 63...
Kc3 {[%clk 0:00:20.1]} 64. a5 {[%clk 0:00:09.4]} 64... Kd3 {[%clk 0:00:19.9]}
65. a6 {[%clk 0:00:09.8]} 65... Ke3 {[%clk 0:00:20.8]} 66. a7 {[%clk 0:00:09.8]}
66... Kf2 {[%clk 0:00:21.7]} 67. a8=Q {[%clk 0:00:09.9]} 67... Kxg2 {[%clk
0:00:22.6]} 68. Qe4 {[%clk 0:00:09.6]} 68... h3 {[%clk 0:00:22.8]} 69. f4+
{[%clk 0:00:09.9]} 69... Kg3 {[%clk 0:00:19.4]} 70. Qxd4 {[%clk 0:00:06.6]}
70... f5 {[%clk 0:00:16.3]} 71. Qg1+ {[%clk 0:00:05.7]} 71... Kxf4 {[%clk
0:00:16.4]} 72. Qh2+ {[%clk 0:00:06.1]} 72... Kg4 {[%clk 0:00:16.7]} 73. Ke2
{[%clk 0:00:06.6]} 73... f4 {[%clk 0:00:17.6]} 74. Kf2 {[%clk 0:00:06.9]} 74...
f3 {[%clk 0:00:18.2]} 75. Qg3+ {[%clk 0:00:07.2]} 75... Kf5 {[%clk 0:00:17.5]}
76. Qxf3+ {[%clk 0:00:07.5]} 76... Ke5 {[%clk 0:00:18.4]} 77. Qxh3 {[%clk
0:00:08.1]} 77... Kd5 {[%clk 0:00:19.3]} 78. Qh4 {[%clk 0:00:08.7]} 78... Kc5
{[%clk 0:00:19]} 79. Ke3 {[%clk 0:00:09.6]} 79... Kd5 {[%clk 0:00:19.9]} 80.
Qd4+ {[%clk 0:00:10.5]} 80... Ke6 {[%clk 0:00:20.2]} 81. Ke4 {[%clk 0:00:10.6]}
81... Ke7 {[%clk 0:00:20]} 82. Qe5+ {[%clk 0:00:10.9]} 82... Kd7 {[%clk
0:00:20]} 83. Kd5 {[%clk 0:00:11.4]} 83... Kc8 {[%clk 0:00:20.3]} 84. Qg7 {[%clk
0:00:11.3]} 84... Kd8 {[%clk 0:00:21.2]} 85. Kd6 {[%clk 0:00:11.4]} 85... Ke8
{[%clk 0:00:22.1]} 86. Qe7# {[%clk 0:00:11.5]} 1-0

[Event "*** Titled Tuesday Blitz"]
[Site "Chess.com"]
[Date "2020.04.14"]
[Round "1"]
[White "machupichu10"]
[Black "dey2580"]
[Result "0-1"]
[WhiteElo "2798"]
[BlackElo "2467"]
[TimeControl "180+1"]
[EndTime "10:09:21 PDT"]
[Termination "dey2580 won on time"]

1. d4 {[%clk 0:02:55.9]} 1... Nf6 {[%clk 0:02:59.6]} 2. c4 {[%clk 0:02:55.4]}
2... e6 {[%clk 0:02:57.2]} 3. Nf3 {[%clk 0:02:53.2]} 3... Bb4+ {[%clk
0:02:54.9]} 4. Bd2 {[%clk 0:02:52.4]} 4... Bxd2+ {[%clk 0:02:52.9]} 5. Qxd2
{[%clk 0:02:47.8]} 5... b6 {[%clk 0:02:44.4]} 6. g3 {[%clk 0:02:46.7]} 6... Bb7
{[%clk 0:02:44.2]} 7. Bg2 {[%clk 0:02:46.3]} 7... d6 {[%clk 0:02:44.1]} 8. Nc3
{[%clk 0:02:46.5]} 8... Nbd7 {[%clk 0:02:44.6]} 9. O-O {[%clk 0:02:46.3]} 9...
O-O {[%clk 0:02:44.6]} 10. Qc2 {[%clk 0:02:45.3]} 10... c5 {[%clk 0:02:40.2]}
11. Rfd1 {[%clk 0:02:44.2]} 11... Qe7 {[%clk 0:02:35.2]} 12. d5 {[%clk
0:02:43.7]} 12... exd5 {[%clk 0:02:33.3]} 13. Nh4 {[%clk 0:02:19.5]} 13... g6
{[%clk 0:02:10.7]} 14. cxd5 {[%clk 0:01:32.1]} 14... Rfe8 {[%clk 0:01:42.4]} 15.
Re1 {[%clk 0:01:24.8]} 15... Ng4 {[%clk 0:01:30]} 16. e4 {[%clk 0:01:12.1]}
16... c4 {[%clk 0:01:11.5]} 17. Nb5 {[%clk 0:00:54.7]} 17... Nde5 {[%clk
0:00:52.4]} 18. h3 {[%clk 0:00:40.8]} 18... Nf6 {[%clk 0:00:50.7]} 19. Re3
{[%clk 0:00:39.6]} 19... Rac8 {[%clk 0:00:40.3]} 20. Rd1 {[%clk 0:00:38.5]}
20... Nh5 {[%clk 0:00:28.8]} 21. Nd4 {[%clk 0:00:35]} 21... Nd3 {[%clk
0:00:26.9]} 22. Nhf3 {[%clk 0:00:21.4]} 22... Qf6 {[%clk 0:00:23.5]} 23. Qc3
{[%clk 0:00:20.5]} 23... a6 {[%clk 0:00:21.9]} 24. b3 {[%clk 0:00:18.9]} 24...
Ne5 {[%clk 0:00:18.6]} 25. Nxe5 {[%clk 0:00:17.7]} 25... dxe5 {[%clk 0:00:19]}
26. Ne2 {[%clk 0:00:16.8]} 26... b5 {[%clk 0:00:19.1]} 27. bxc4 {[%clk
0:00:17.1]} 27... Rxc4 {[%clk 0:00:18.7]} 28. Qb3 {[%clk 0:00:17.5]} 28... Qd6
{[%clk 0:00:17.9]} 29. Rc3 {[%clk 0:00:17.3]} 29... Rec8 {[%clk 0:00:17.6]} 30.
Rdc1 {[%clk 0:00:17]} 30... Rxc3 {[%clk 0:00:15.6]} 31. Rxc3 {[%clk 0:00:17.1]}
31... Rxc3 {[%clk 0:00:15.7]} 32. Nxc3 {[%clk 0:00:18]} 32... Nf6 {[%clk
0:00:14.9]} 33. a4 {[%clk 0:00:17.6]} 33... b4 {[%clk 0:00:15]} 34. Nd1 {[%clk
0:00:16.9]} 34... a5 {[%clk 0:00:14.8]} 35. Ne3 {[%clk 0:00:17]} 35... Ba6
{[%clk 0:00:15.2]} 36. Nc4 {[%clk 0:00:13.8]} 36... Qc7 {[%clk 0:00:14.9]} 37.
Ne3 {[%clk 0:00:11.6]} 37... Qc1+ {[%clk 0:00:13.8]} 38. Kh2 {[%clk 0:00:11.4]}
38... Qd2 {[%clk 0:00:13.9]} 39. Qc2 {[%clk 0:00:05.2]} 39... Qxc2 {[%clk
0:00:13]} 40. Nxc2 {[%clk 0:00:06.1]} 40... Bd3 {[%clk 0:00:13.1]} 41. Ne1
{[%clk 0:00:05.4]} 41... Bxe4 {[%clk 0:00:13.3]} 42. Bxe4 {[%clk 0:00:04.7]}
42... Nxe4 {[%clk 0:00:13.6]} 43. Nd3 {[%clk 0:00:05.3]} 43... b3 {[%clk
0:00:11.5]} 44. Kg2 {[%clk 0:00:05.2]} 44... Nc5 {[%clk 0:00:10.3]} 45. Nb2
{[%clk 0:00:04.4]} 45... f5 {[%clk 0:00:09.8]} 46. Kf3 {[%clk 0:00:04.7]} 46...
Kf7 {[%clk 0:00:09.5]} 47. Ke3 {[%clk 0:00:03.7]} 47... Ke7 {[%clk 0:00:09.5]}
48. Kd2 {[%clk 0:00:04.4]} 48... Kd6 {[%clk 0:00:09.7]} 49. Nc4+ {[%clk
0:00:04.2]} 49... Kxd5 {[%clk 0:00:10.1]} 50. Nxa5 {[%clk 0:00:04.7]} 50... Nxa4
{[%clk 0:00:09.8]} 51. Nxb3 {[%clk 0:00:04.8]} 51... Ke4 {[%clk 0:00:09.9]} 52.
Ke1 {[%clk 0:00:03.4]} 52... Kf3 {[%clk 0:00:08.6]} 53. Kf1 {[%clk 0:00:03.9]}
53... Ke4 {[%clk 0:00:07.5]} 54. Nd2+ {[%clk 0:00:04.5]} 54... Kd3 {[%clk
0:00:07.9]} 55. Nf3 {[%clk 0:00:05.1]} 55... Ke4 {[%clk 0:00:08]} 56. Ng5+
{[%clk 0:00:05.4]} 56... Kd5 {[%clk 0:00:08.2]} 57. Nxh7 {[%clk 0:00:05.8]}
57... Ke6 {[%clk 0:00:08]} 58. Ng5+ {[%clk 0:00:06.1]} 58... Kf6 {[%clk
0:00:08.6]} 59. Nh7+ {[%clk 0:00:06.4]} 59... Kg7 {[%clk 0:00:08.3]} 60. Ng5
{[%clk 0:00:07.1]} 60... Kf6 {[%clk 0:00:09]} 61. Nf3 {[%clk 0:00:07.2]} 61...
e4 {[%clk 0:00:08.7]} 62. Nd2 {[%clk 0:00:06.5]} 62... Nc3 {[%clk 0:00:08.9]}
63. Nc4 {[%clk 0:00:05.9]} 63... Nd5 {[%clk 0:00:08.8]} 64. h4 {[%clk
0:00:04.9]} 64... Nc3 {[%clk 0:00:07.7]} 65. Ke1 {[%clk 0:00:04.6]} 65... Nb5
{[%clk 0:00:05.8]} 66. Kd2 {[%clk 0:00:04.5]} 66... Nd4 {[%clk 0:00:06.2]} 67.
Ke3 {[%clk 0:00:05.1]} 67... Ne6 {[%clk 0:00:06.5]} 68. Nb6 {[%clk 0:00:04.3]}
68... Ng7 {[%clk 0:00:05.3]} 69. Nd5+ {[%clk 0:00:04.3]} 69... Ke5 {[%clk
0:00:05.5]} 70. Nf4 {[%clk 0:00:04.9]} 70... Kf6 {[%clk 0:00:05.8]} 71. Nd5+
{[%clk 0:00:05.1]} 71... Ke5 {[%clk 0:00:05.7]} 72. Ne7 {[%clk 0:00:05.6]} 72...
Kf6 {[%clk 0:00:05.5]} 73. Ng8+ {[%clk 0:00:06.1]} 73... Kf7 {[%clk 0:00:05.4]}
74. Nh6+ {[%clk 0:00:06.5]} 74... Kf6 {[%clk 0:00:05.8]} 75. g4 {[%clk
0:00:06.7]} 75... Ne6 {[%clk 0:00:04.5]} 76. Ng8+ {[%clk 0:00:06]} 76... Kg7
{[%clk 0:00:04.5]} 77. Ne7 {[%clk 0:00:06.1]} 77... Kf6 {[%clk 0:00:04.6]} 78.
Ng8+ {[%clk 0:00:04.1]} 78... Kg7 {[%clk 0:00:04.8]} 79. Ne7 {[%clk 0:00:04.1]}
79... Kf6 {[%clk 0:00:05.4]} 80. gxf5 {[%clk 0:00:03.7]} 80... gxf5 {[%clk
0:00:04.1]} 81. Nc6 {[%clk 0:00:04.3]} 81... Ng7 {[%clk 0:00:03]} 82. Kf4 {[%clk
0:00:03.4]} 82... Ne6+ {[%clk 0:00:03.2]} 83. Kg3 {[%clk 0:00:03.5]} 83... Ng7
{[%clk 0:00:03.6]} 84. Nd4 {[%clk 0:00:03.4]} 84... Nh5+ {[%clk 0:00:03.8]} 85.
Kg2 {[%clk 0:00:02.5]} 85... Ke5 {[%clk 0:00:04.1]} 86. Nc6+ {[%clk 0:00:03.1]}
86... Kf4 {[%clk 0:00:03.9]} 0-1

[Event "*** Titled Tuesday Blitz"]
[Site "Chess.com"]
[Date "2020.04.14"]
[Round "1"]
[White "LileKoridze"]
[Black "Semen_Khanin"]
[Result "1/2-1/2"]
[WhiteElo "2278"]
[BlackElo "2611"]
[TimeControl "180+1"]
[EndTime "10:09:22 PDT"]
[Termination "Game drawn by repetition"]

1. d4 {[%clk 0:03:00.9]} 1... Nf6 {[%clk 0:02:59.6]} 2. c4 {[%clk 0:03:00.5]}
2... g6 {[%clk 0:02:59.7]} 3. Nc3 {[%clk 0:03:00.5]} 3... d5 {[%clk 0:03:00.4]}
4. Nf3 {[%clk 0:02:59.6]} 4... Bg7 {[%clk 0:03:00.4]} 5. Bg5 {[%clk 0:02:55.9]}
5... Ne4 {[%clk 0:02:59.6]} 6. cxd5 {[%clk 0:02:56.1]} 6... Nxg5 {[%clk
0:02:58.9]} 7. Nxg5 {[%clk 0:02:56.2]} 7... e6 {[%clk 0:02:59.5]} 8. Qd2 {[%clk
0:02:56]} 8... exd5 {[%clk 0:02:59.7]} 9. Qe3+ {[%clk 0:02:56.1]} 9... Kf8
{[%clk 0:02:59.8]} 10. Qf4 {[%clk 0:02:56.3]} 10... Bf6 {[%clk 0:02:59.2]} 11.
h4 {[%clk 0:02:56.1]} 11... h6 {[%clk 0:02:56.6]} 12. Nf3 {[%clk 0:02:56.3]}
12... Kg7 {[%clk 0:02:56.6]} 13. e3 {[%clk 0:02:51.7]} 13... Be6 {[%clk
0:02:55.2]} 14. Nb5 {[%clk 0:02:50.7]} 14... Na6 {[%clk 0:02:50.4]} 15. Be2
{[%clk 0:02:44.8]} 15... c6 {[%clk 0:02:47.7]} 16. Nc3 {[%clk 0:02:44.8]} 16...
Nc7 {[%clk 0:02:47.7]} 17. O-O {[%clk 0:02:44.6]} 17... g5 {[%clk 0:02:46.2]}
18. Qg3 {[%clk 0:02:42.6]} 18... Ne8 {[%clk 0:02:42.5]} 19. Ne5 {[%clk
0:02:41.6]} 19... Nd6 {[%clk 0:02:41.6]} 20. h5 {[%clk 0:02:35.9]} 20... Nf5
{[%clk 0:02:23.7]} 21. Qf3 {[%clk 0:02:28.9]} 21... Qd6 {[%clk 0:02:19.8]} 22.
Bd3 {[%clk 0:02:27.3]} 22... Bxe5 {[%clk 0:01:24.1]} 23. Bxf5 {[%clk 0:02:27.2]}
23... Bxf5 {[%clk 0:01:23.8]} 24. Qxf5 {[%clk 0:02:26.9]} 24... Bf6 {[%clk
0:01:24.2]} 25. Ne2 {[%clk 0:02:26.1]} 25... Qe6 {[%clk 0:01:24.2]} 26. Qd3
{[%clk 0:02:25.5]} 26... Rhe8 {[%clk 0:01:21]} 27. Ng3 {[%clk 0:02:25.1]} 27...
Kg8 {[%clk 0:01:21.4]} 28. Nf5 {[%clk 0:02:24.5]} 28... Bg7 {[%clk 0:01:21.4]}
29. Rae1 {[%clk 0:02:20.9]} 29... Qe4 {[%clk 0:01:17.7]} 30. Qxe4 {[%clk
0:02:20.6]} 30... Rxe4 {[%clk 0:01:18]} 31. Ng3 {[%clk 0:02:10.8]} 31... Re6
{[%clk 0:01:17.8]} 32. Rb1 {[%clk 0:02:08.4]} 32... a5 {[%clk 0:01:16]} 33. b3
{[%clk 0:02:07.8]} 33... Bf8 {[%clk 0:01:15.6]} 34. Rfc1 {[%clk 0:02:06.9]}
34... Ra6 {[%clk 0:01:03.7]} 35. Ne2 {[%clk 0:01:58.5]} 35... Bd6 {[%clk
0:01:01.4]} 36. Nc3 {[%clk 0:01:58]} 36... f5 {[%clk 0:01:00.7]} 37. Na4 {[%clk
0:01:52.5]} 37... Kf7 {[%clk 0:01:00.7]} 38. Nc5 {[%clk 0:01:50.8]} 38... Bxc5
{[%clk 0:01:00.6]} 39. Rxc5 {[%clk 0:01:51]} 39... f4 {[%clk 0:00:59.9]} 40. Re1
{[%clk 0:01:50.5]} 40... fxe3 {[%clk 0:00:50.5]} 41. Rxe3 {[%clk 0:01:50.3]}
41... Ke7 {[%clk 0:00:45.6]} 42. g4 {[%clk 0:01:47.6]} 42... Rxe3 {[%clk
0:00:31.8]} 43. fxe3 {[%clk 0:01:47.7]} 43... Kd6 {[%clk 0:00:32.1]} 44. Kf2
{[%clk 0:01:47]} 44... a4 {[%clk 0:00:32.4]} 45. Rc3 {[%clk 0:01:44.7]} 45...
axb3 {[%clk 0:00:32.1]} 46. axb3 {[%clk 0:01:44.6]} 46... Ra2+ {[%clk
0:00:32.3]} 47. Kf3 {[%clk 0:01:44.8]} 47... Rb2 {[%clk 0:00:32.7]} 48. Rd3
{[%clk 0:01:43]} 48... b5 {[%clk 0:00:32.9]} 49. e4 {[%clk 0:01:39.2]} 49...
dxe4+ {[%clk 0:00:32.7]} 50. Kxe4 {[%clk 0:01:39.6]} 50... Rf2 {[%clk
0:00:27.8]} 51. Rf3 {[%clk 0:01:13.7]} 51... Re2+ {[%clk 0:00:23.3]} 52. Kd3
{[%clk 0:01:12.3]} 52... Rg2 {[%clk 0:00:20.9]} 53. Rf6+ {[%clk 0:01:11.9]}
53... Kd5 {[%clk 0:00:21.3]} 54. Rxh6 {[%clk 0:01:11.4]} 54... Rxg4 {[%clk
0:00:21]} 55. Rg6 {[%clk 0:01:11.5]} 55... Rg3+ {[%clk 0:00:21.5]} 56. Kd2
{[%clk 0:01:11.4]} 56... Kxd4 {[%clk 0:00:20.5]} 57. Rxc6 {[%clk 0:01:11.5]}
57... Rxb3 {[%clk 0:00:20.6]} 58. Rb6 {[%clk 0:01:10.3]} 58... Rb2+ {[%clk
0:00:20.6]} 59. Kc1 {[%clk 0:01:09.9]} 59... Rb3 {[%clk 0:00:16.2]} 60. h6
{[%clk 0:01:02.9]} 60... Kc5 {[%clk 0:00:11.4]} 61. Rg6 {[%clk 0:01:00.1]} 61...
Rh3 {[%clk 0:00:07.7]} 62. Rxg5+ {[%clk 0:01:00]} 62... Kc4 {[%clk 0:00:08.2]}
63. Rg6 {[%clk 0:00:56.7]} 63... b4 {[%clk 0:00:07.7]} 64. Rc6+ {[%clk
0:00:48.5]} 64... Kb3 {[%clk 0:00:07.4]} 65. Kd2 {[%clk 0:00:48.3]} 65... Kb2
{[%clk 0:00:07.2]} 66. Rc2+ {[%clk 0:00:44.3]} 66... Ka3 {[%clk 0:00:04.9]} 67.
Rc6 {[%clk 0:00:41.5]} 67... b3 {[%clk 0:00:05.1]} 68. Ra6+ {[%clk 0:00:35.5]}
68... Kb2 {[%clk 0:00:05.4]} 69. Rb6 {[%clk 0:00:27.2]} 69... Ka2 {[%clk
0:00:05.1]} 70. Ra6+ {[%clk 0:00:19.9]} 70... Kb1 {[%clk 0:00:05.1]} 71. Rb6
{[%clk 0:00:20.1]} 71... b2 {[%clk 0:00:05.7]} 72. Rg6 {[%clk 0:00:13.4]} 72...
Rh2+ {[%clk 0:00:04.4]} 73. Kc3 {[%clk 0:00:13.3]} 73... Rh1 {[%clk 0:00:05.3]}
74. Rf6 {[%clk 0:00:09.8]} 74... Rh3+ {[%clk 0:00:05.5]} 75. Kd2 {[%clk
0:00:06.1]} 75... Ka2 {[%clk 0:00:04.6]} 76. Ra6+ {[%clk 0:00:05.6]} 76... Kb1
{[%clk 0:00:03.6]} 77. Rf6 {[%clk 0:00:03.9]} 77... Rh2+ {[%clk 0:00:03.9]} 78.
Kc3 {[%clk 0:00:03.8]} 78... Rh3+ {[%clk 0:00:02.9]} 79. Kd2 {[%clk 0:00:04]}
1/2-1/2

[Event "*** Titled Tuesday Blitz"]
[Site "Chess.com"]
[Date "2020.04.14"]
[Round "1"]
[White "pirulillo"]
[Black "Skatchkov_V"]
[Result "1-0"]
[WhiteElo "2175"]
[BlackElo "2543"]
[TimeControl "180+1"]
[EndTime "10:09:34 PDT"]
[Termination "pirulillo won on time"]

1. e4 {[%clk 0:02:58.4]} 1... e5 {[%clk 0:03:00]} 2. Bc4 {[%clk 0:02:56.9]} 2...
Nf6 {[%clk 0:02:59.6]} 3. d3 {[%clk 0:02:56.4]} 3... c6 {[%clk 0:03:00.2]} 4.
Nf3 {[%clk 0:02:54.9]} 4... d5 {[%clk 0:03:00.6]} 5. Bb3 {[%clk 0:02:54.5]} 5...
Bb4+ {[%clk 0:03:01.3]} 6. c3 {[%clk 0:02:53.8]} 6... Bd6 {[%clk 0:03:01.4]} 7.
O-O {[%clk 0:02:52]} 7... O-O {[%clk 0:03:01.8]} 8. Nbd2 {[%clk 0:02:51.2]} 8...
a5 {[%clk 0:03:00.3]} 9. a4 {[%clk 0:02:48.2]} 9... Bg4 {[%clk 0:02:58.1]} 10.
h3 {[%clk 0:02:47.5]} 10... Bh5 {[%clk 0:02:58.4]} 11. Re1 {[%clk 0:02:46.7]}
11... Nbd7 {[%clk 0:02:58.8]} 12. Qe2 {[%clk 0:02:46.4]} 12... Nc5 {[%clk
0:02:55.5]} 13. Bc2 {[%clk 0:02:46.1]} 13... dxe4 {[%clk 0:02:55.8]} 14. dxe4
{[%clk 0:02:45.4]} 14... Ne6 {[%clk 0:02:56.2]} 15. Nf1 {[%clk 0:02:44.3]} 15...
Nd7 {[%clk 0:02:49.9]} 16. Ng3 {[%clk 0:02:43.5]} 16... Bg6 {[%clk 0:02:50.4]}
17. Nf5 {[%clk 0:02:25.8]} 17... Bc5 {[%clk 0:02:26.4]} 18. Be3 {[%clk
0:02:19.7]} 18... Qb6 {[%clk 0:02:24]} 19. Bxc5 {[%clk 0:02:17.3]} 19... Qxc5
{[%clk 0:02:19.3]} 20. g3 {[%clk 0:02:12.1]} 20... Rad8 {[%clk 0:02:13.2]} 21.
Qe3 {[%clk 0:01:54.1]} 21... Qxe3 {[%clk 0:01:53.1]} 22. Rxe3 {[%clk 0:01:55]}
22... f6 {[%clk 0:01:50]} 23. Ree1 {[%clk 0:01:55.9]} 23... Ndc5 {[%clk
0:01:42.4]} 24. Ne7+ {[%clk 0:01:44]} 24... Kf7 {[%clk 0:01:41.3]} 25. Nxg6
{[%clk 0:01:43.7]} 25... hxg6 {[%clk 0:01:41.6]} 26. Rad1 {[%clk 0:01:43.9]}
26... Ke7 {[%clk 0:01:34.3]} 27. Kf1 {[%clk 0:01:38.6]} 27... Nd7 {[%clk
0:01:27.7]} 28. Ke2 {[%clk 0:01:31.9]} 28... Nb6 {[%clk 0:01:26]} 29. b3 {[%clk
0:01:04.3]} 29... Nd7 {[%clk 0:01:22]} 30. Bd3 {[%clk 0:00:56.6]} 30... f5
{[%clk 0:01:20.2]} 31. Nd2 {[%clk 0:00:51.2]} 31... Nec5 {[%clk 0:01:12.6]} 32.
Bc2 {[%clk 0:00:49.2]} 32... Rh8 {[%clk 0:01:02.5]} 33. h4 {[%clk 0:00:48.3]}
33... Kf6 {[%clk 0:00:43.9]} 34. b4 {[%clk 0:00:41]} 34... axb4 {[%clk
0:00:42.5]} 35. cxb4 {[%clk 0:00:41.4]} 35... Ne6 {[%clk 0:00:42.9]} 36. Nb3
{[%clk 0:00:41.2]} 36... Nb6 {[%clk 0:00:41.9]} 37. a5 {[%clk 0:00:39.4]} 37...
Nc4 {[%clk 0:00:28.6]} 38. Rb1 {[%clk 0:00:37.5]} 38... Nd4+ {[%clk 0:00:17]}
39. Nxd4 {[%clk 0:00:36.3]} 39... Rxd4 {[%clk 0:00:17.7]} 40. Red1 {[%clk
0:00:29.3]} 40... Rhd8 {[%clk 0:00:16.1]} 41. Bb3 {[%clk 0:00:19.7]} 41... Rxe4+
{[%clk 0:00:13.6]} 42. Kf1 {[%clk 0:00:18.5]} 42... Nd2+ {[%clk 0:00:11.2]} 43.
Rxd2 {[%clk 0:00:18]} 43... Rxd2 {[%clk 0:00:11.3]} 44. Bd1 {[%clk 0:00:11.6]}
44... Rdd4 {[%clk 0:00:10.9]} 45. Bf3 {[%clk 0:00:10.9]} 45... Rxb4 {[%clk
0:00:11.2]} 46. Bxe4 {[%clk 0:00:08.5]} 46... Rxe4 {[%clk 0:00:11.5]} 47. Rxb7
{[%clk 0:00:08.2]} 47... Ra4 {[%clk 0:00:10.8]} 48. Rb6 {[%clk 0:00:07.6]} 48...
Rxa5 {[%clk 0:00:10.9]} 49. Rxc6+ {[%clk 0:00:08]} 49... Kf7 {[%clk 0:00:11.5]}
50. Rc7+ {[%clk 0:00:08.1]} 50... Kg8 {[%clk 0:00:08.1]} 51. Rc6 {[%clk
0:00:08.2]} 51... Kh7 {[%clk 0:00:08.4]} 52. Kg2 {[%clk 0:00:08.4]} 52... Kh6
{[%clk 0:00:07.8]} 53. Rb6 {[%clk 0:00:07.5]} 53... Ra7 {[%clk 0:00:06.4]} 54.
Rc6 {[%clk 0:00:07.6]} 54... Ra2 {[%clk 0:00:06.5]} 55. Rc5 {[%clk 0:00:07.6]}
55... e4 {[%clk 0:00:07.1]} 56. Kf1 {[%clk 0:00:07.8]} 56... Ra1+ {[%clk
0:00:07.5]} 57. Ke2 {[%clk 0:00:07.4]} 57... Ra6 {[%clk 0:00:07.8]} 58. Rc8
{[%clk 0:00:06.7]} 58... Kh5 {[%clk 0:00:08.5]} 59. Rh8+ {[%clk 0:00:05.3]}
59... Kg4 {[%clk 0:00:09.2]} 60. Rg8 {[%clk 0:00:06]} 60... Ra2+ {[%clk
0:00:09.8]} 61. Ke3 {[%clk 0:00:05.7]} 61... Ra3+ {[%clk 0:00:10.1]} 62. Ke2
{[%clk 0:00:05.8]} 62... Ra2+ {[%clk 0:00:10.1]} 63. Ke3 {[%clk 0:00:06]} 63...
Ra3+ {[%clk 0:00:10.7]} 64. Ke2 {[%clk 0:00:06.3]} 64... Kh3 {[%clk 0:00:11.2]}
65. Rxg7 {[%clk 0:00:05.8]} 65... Kg2 {[%clk 0:00:10.9]} 66. Rxg6 {[%clk
0:00:05.5]} 66... Ra2+ {[%clk 0:00:11.5]} 67. Ke3 {[%clk 0:00:05.9]} 67... Rxf2
{[%clk 0:00:12]} 68. h5 {[%clk 0:00:06.1]} 68... Rf3+ {[%clk 0:00:10.4]} 69. Kd4
{[%clk 0:00:06.3]} 69... e3 {[%clk 0:00:09.3]} 70. h6 {[%clk 0:00:06.4]} 1-0